bitfinex-derivatives/quotes_BTCF0:USTF0_20241104
["timestamp","ask_amount","ask_price","bid_price","bid_amount"]
[1730729863586,0.433598,68727.0,68722.0,0.0021825]
[1730729863792,0.072803,68723.0,68722.0,0.0021825]
[1730729864503,0.21286895,68723.0,68722.0,0.0021825]
[1730729864687,0.072806,68720.0,68719.0,0.00064]
[1730729864893,0.072819,68708.0,68704.0,0.04349468]
[1730729865097,0.072813,68714.0,68699.0,0.072828]
[1730729865098,0.3608,68705.0,68699.0,0.072828]
[1730729865295,0.072828,68699.0,68698.0,0.1172]
[1730729866204,0.072828,68699.0,68689.0,0.06518339]
[1730729866205,0.072837,68691.0,68690.0,0.072837]
[1730729866391,0.072832,68696.0,68691.0,0.072836]
[1730729866899,0.072833,68695.0,68691.0,0.072836]
[1730729867299,0.072833,68695.0,68690.0,0.072838]
[1730729867498,0.433628,68699.0,68694.0,0.072833]
[1730729867700,0.072836,68692.0,68689.0,0.07502139]
[1730729867902,0.3608,68699.0,68689.0,0.00218339]
[1730729867903,0.072829,68698.0,68689.0,0.00218339]
[1730729868205,0.033,68698.0,68691.0,0.003]
[1730729868391,0.072835,68692.0,68691.0,0.003]
[1730729868797,0.072835,68692.0,68691.0,0.004]
[1730729868798,0.073835,68692.0,68691.0,0.004]
[1730729869403,0.001,68692.0,68689.0,0.007]
[1730729869599,0.001,68692.0,68691.0,0.001]
[1730729870206,0.073835,68692.0,68691.0,0.001]
[1730729870406,0.072835,68692.0,68691.0,0.001]
[1730729871099,0.433635,68692.0,68691.0,0.001]
[1730729871600,0.072843,68685.0,68681.0,0.072847]
[1730729871795,0.072843,68685.0,68678.0,0.05991073]
[1730729872108,0.072839,68689.0,68679.0,0.17026595]
[1730729872330,0.072842,68687.0,68684.0,0.072844]
[1730729873594,0.072842,68687.0,68686.0,0.072842]
[1730729873798,0.072842,68687.0,68679.0,0.19426595]
[1730729873799,0.0307,68691.0,68681.0,0.3608]
[1730729873993,0.3608,68692.0,68684.0,0.14006595]
[1730729874195,0.072834,68694.0,68689.0,0.14006595]
[1730729874500,0.07283,68698.0,68689.0,0.14006595]
[1730729874703,0.39216,68705.0,68689.0,0.14006595]
[1730729875005,0.072833,68695.0,68689.0,0.14006595]
[1730729875196,0.3608,68698.0,68697.0,0.07283]
[1730729875895,0.433629,68698.0,68697.0,0.07283]
[1730729877207,0.433629,68698.0,68697.0,0.07583]
[1730729877808,0.434629,68698.0,68697.0,0.07383]
[1730729878111,0.3618,68698.0,68697.0,0.07383]
[1730729878300,0.434629,68698.0,68697.0,0.07383]
[1730729878499,0.073829,68698.0,68697.0,0.07383]
[1730729878703,0.072829,68698.0,68697.0,0.07583]
[1730729879407,0.072829,68698.0,68697.0,0.001]
[1730729879707,0.072829,68698.0,68697.0,0.006]
[1730729879708,0.509509,68698.0,68697.0,0.006]
[1730729880400,0.072829,68698.0,68697.0,0.006]
[1730729880807,0.072829,68698.0,68697.0,0.005]
[1730729880808,0.074829,68698.0,68697.0,0.005]
[1730729881008,0.072834,68693.0,68692.0,0.072835]
[1730729882405,0.002,68698.0,68687.0,0.3608]
[1730729882614,0.002,68698.0,68697.0,0.07283]
[1730729883400,0.072825,68703.0,68702.0,0.072825]
[1730729883995,0.3608,68705.0,68695.0,0.0625]
[1730729884211,0.3608,68705.0,68698.0,0.072829]
[1730729884212,0.072828,68699.0,68698.0,0.072829]
[1730729884410,0.072828,68699.0,68697.0,0.007]
[1730729884714,0.072828,68699.0,68697.0,0.005]
[1730729885312,0.072828,68699.0,68698.0,0.072829]
[1730729886604,0.072825,68702.0,68701.0,0.072823]
[1730729888013,0.074825,68702.0,68701.0,0.072823]
[1730729888409,0.074825,68702.0,68701.0,0.077823]
[1730729888410,0.072825,68702.0,68701.0,0.077823]
[1730729889310,0.072825,68702.0,68701.0,0.005]
[1730729889614,0.072825,68702.0,68684.0,0.21509286]
[1730729889615,0.072831,68696.0,68684.0,0.00218391]
[1730729889812,0.072831,68696.0,68683.0,0.02793039]
[1730729889813,0.072844,68684.0,68683.0,0.02793039]
[1730729890111,0.072844,68684.0,68683.0,0.072845]
[1730729890315,0.072844,68684.0,68674.0,0.0305]
[1730729890316,0.072846,68682.0,68675.0,0.02865597]
[1730729890505,0.072846,68682.0,68674.0,0.0305]
[1730729890706,0.072846,68682.0,68678.0,0.072849]
[1730729890905,0.072846,68682.0,68674.0,0.0305]
[1730729890906,0.072846,68682.0,68681.0,0.433647]
[1730729891107,0.072843,68685.0,68684.0,0.072843]
[1730729891416,0.43364,68688.0,68687.0,0.072841]
[1730729891605,0.3608,68688.0,68687.0,0.072841]
[1730729891912,0.3608,68696.0,68685.0,0.11692]
[1730729892111,0.433631,68696.0,68695.0,0.072832]
[1730729893817,0.437631,68696.0,68695.0,0.072832]
[1730729894210,0.3648,68696.0,68695.0,0.072832]
[1730729894404,0.3678,68696.0,68695.0,0.072832]
[1730729894906,0.007,68696.0,68695.0,0.072832]
[1730729895618,0.007,68696.0,68695.0,0.11602268]
[1730729896304,0.079831,68696.0,68695.0,0.072832]
[1730729898308,0.007,68696.0,68695.0,0.072832]
[1730729899611,0.079831,68696.0,68695.0,0.072832]
[1730729899812,0.007,68696.0,68695.0,0.072832]
[1730729901315,0.079831,68696.0,68695.0,0.072832]
[1730729902509,0.007,68696.0,68691.0,0.36204]
[1730729902720,0.072835,68692.0,68691.0,0.3608]
[1730729903508,0.072835,68692.0,68691.0,0.433637]
[1730729903715,0.072835,68692.0,68691.0,0.3618]
[1730729903919,0.433635,68692.0,68691.0,0.001]
[1730729905522,0.870355,68692.0,68679.0,0.0316]
[1730729905819,0.072844,68686.0,68685.0,0.072843]
[1730729907319,0.072844,68686.0,68685.0,0.078843]
[1730729907623,0.072844,68686.0,68685.0,0.083843]
[1730729908726,0.07284,68689.0,68688.0,0.072838]
[1730729909813,0.07284,68689.0,68688.0,0.075838]
[1730729910011,0.3608,68692.0,68691.0,0.072837]
[1730729910012,0.433638,68692.0,68691.0,0.072837]
[1730729910621,0.36168,68699.0,68690.0,0.14006595]
[1730729910828,0.36168,68699.0,68689.0,0.072838]
[1730729910829,0.3608,68699.0,68698.0,0.072829]
[1730729911514,0.3608,68699.0,68695.0,0.072831]
[1730729911515,0.072831,68696.0,68695.0,0.072831]
[1730729912118,0.14006595,68698.0,68692.0,0.072835]
[1730729912428,0.072834,68693.0,68692.0,0.072835]
[1730729912612,0.072834,68693.0,68687.0,0.38857096]
[1730729912817,0.072834,68693.0,68686.0,0.11692]
[1730729912818,0.433634,68693.0,68686.0,0.189762]
[1730729913119,0.072841,68687.0,68686.0,0.189762]
[1730729914318,0.072841,68687.0,68686.0,0.193762]
[1730729914827,0.072841,68687.0,68686.0,0.12092]
[1730729915033,0.072841,68687.0,68686.0,0.12592]
[1730729915231,0.072841,68687.0,68686.0,0.009]
[1730729917631,0.072841,68687.0,68686.0,0.081842]
[1730729918331,0.072841,68687.0,68686.0,0.009]
[1730729918839,0.21290695,68687.0,68686.0,0.009]
[1730729921123,0.072841,68687.0,68686.0,0.009]
[1730729921324,0.21290695,68687.0,68686.0,0.009]
[1730729921526,0.57370695,68687.0,68686.0,0.009]
[1730729921735,0.57370695,68687.0,68686.0,0.081842]
[1730729921736,0.433641,68687.0,68686.0,0.081842]
[1730729921927,0.00076,68693.0,68686.0,0.009]
[1730729922234,0.433633,68695.0,68691.0,0.11647248]
[1730729922235,0.072836,68692.0,68691.0,0.11647248]
[1730729922533,0.072836,68692.0,68691.0,0.072834]
[1730729922929,0.072834,68694.0,68693.0,0.072834]
[1730729923334,0.072834,68694.0,68693.0,0.1164705]
[1730729923937,0.3608,68695.0,68693.0,0.04363634]
[1730729924244,0.3608,68695.0,68686.0,0.077841]
[1730729924245,0.072835,68692.0,68686.0,0.077841]
[1730729924437,0.433641,68689.0,68688.0,0.072839]
[1730729924733,0.3608,68689.0,68685.0,0.04363888]
[1730729924932,0.3608,68689.0,68684.0,0.072844]
[1730729925127,0.072843,68685.0,68684.0,0.072844]
[1730729925531,0.072844,68684.0,68683.0,0.04363888]
[1730729925733,0.3608,68689.0,68678.0,0.44698465]
[1730729925734,0.072845,68683.0,68682.0,0.11648488]
[1730729926233,0.072845,68683.0,68682.0,0.072846]
[1730729926433,0.072849,68680.0,68679.0,0.072849]
[1730729927527,0.072851,68677.0,68676.0,0.105052]
[1730729928937,0.072851,68677.0,68676.0,0.119052]
[1730729929126,0.433651,68677.0,68676.0,0.014]
[1730729930141,0.433651,68677.0,68676.0,0.028]
[1730729933241,0.433651,68677.0,68676.0,0.100852]
[1730729936644,0.433651,68677.0,68676.0,0.15843958]
[1730729937042,0.07285,68679.0,68678.0,0.07285]
[1730729937754,0.072851,68677.0,68676.0,0.08616]
[1730729938045,0.21291695,68677.0,68676.0,0.028]
[1730729938239,0.072851,68677.0,68676.0,0.014]
[1730729938441,0.072852,68676.0,68675.0,0.05816]
[1730729939335,0.3608,68679.0,68675.0,0.05816]
[1730729939545,0.43365,68679.0,68678.0,0.07285]
[1730729940639,0.3608,68685.0,68684.0,0.072844]
[1730729940833,0.0616,68690.0,68689.0,0.072837]
[1730729940834,0.072838,68690.0,68689.0,0.072837]
[1730729941251,0.3608,68693.0,68692.0,0.072835]
[1730729941746,0.433634,68693.0,68692.0,0.072835]
[1730729943134,0.433634,68693.0,68692.0,0.11645362]
[1730729943343,0.433634,68693.0,68692.0,0.11645247]
[1730729943656,0.434634,68693.0,68692.0,0.04361747]
[1730729943833,0.436634,68693.0,68691.0,0.04361747]
[1730729944149,0.436634,68693.0,68685.0,0.0329]
[1730729944150,0.072837,68691.0,68689.0,0.04361747]
[1730729944349,0.072838,68690.0,68689.0,0.04361747]
[1730729944853,0.072838,68690.0,68685.0,0.0329]
[1730729944854,0.072842,68686.0,68685.0,0.0329]
[1730729945151,0.072842,68686.0,68676.0,0.0327]
[1730729945152,0.072849,68679.0,68676.0,0.0327]
[1730729945445,0.07285,68678.0,68677.0,0.072851]
[1730729945651,0.07285,68678.0,68676.0,0.0327]
[1730729945652,0.3608,68678.0,68676.0,0.0327]
[1730729945851,0.072855,68674.0,68673.0,0.072856]
[1730729947540,0.072856,68673.0,68672.0,0.103957]
[1730729949948,0.072856,68673.0,68672.0,0.110957]
[1730729950146,0.072856,68673.0,68672.0,0.0381]
[1730729950347,0.072856,68673.0,68672.0,0.0451]
[1730729951852,0.072856,68673.0,68672.0,0.11708448]
[1730729952554,0.072856,68673.0,68672.0,0.19946134]
[1730729952945,0.072856,68673.0,68672.0,0.19947362]
[1730729953956,0.072856,68673.0,68672.0,0.014]
[1730729954142,0.072856,68673.0,68672.0,0.07218697]
[1730729954346,0.072856,68673.0,68672.0,0.014]
[1730729956755,0.10148004,68673.0,68672.0,0.014]
[1730729957549,0.072856,68673.0,68672.0,0.014]
[1730729961269,0.072856,68673.0,68672.0,0.086857]
[1730729961956,0.072856,68673.0,68672.0,0.081857]
[1730729962958,0.3608,68674.0,68672.0,0.009]
[1730729963167,0.433655,68674.0,68673.0,0.103756]
[1730729965053,0.433655,68674.0,68673.0,0.104756]
[1730729965757,0.433655,68674.0,68673.0,0.106756]
[1730729966559,0.433655,68674.0,68673.0,0.0339]
[1730729966960,0.433655,68674.0,68673.0,0.003]
[1730729971057,0.794455,68674.0,68673.0,0.003]
[1730729981583,0.794455,68674.0,68673.0,0.002]
[1730729981781,0.799455,68674.0,68673.0,0.001]
[1730729982082,0.803455,68674.0,68673.0,0.04465244]
[1730729982375,0.803455,68674.0,68668.0,0.05820326]
[1730729982580,0.07286,68669.0,68668.0,0.05820326]
[1730729983370,0.805295,68674.0,68666.0,0.10154619]
[1730729983583,0.443655,68674.0,68669.0,0.05826036]
[1730729983772,0.072859,68670.0,68669.0,0.05826036]
[1730729985172,0.075859,68670.0,68669.0,0.05826036]
[1730729985375,0.003,68670.0,68668.0,0.05826036]
[1730729985573,0.07286,68669.0,68668.0,0.05826036]
[1730729986771,0.07286,68669.0,68661.0,0.10055983]
[1730729986973,0.07286,68669.0,68662.0,0.072867]
[1730729986974,0.072867,68663.0,68662.0,0.072867]
[1730729987574,0.072867,68663.0,68662.0,0.14562108]
[1730729987985,0.072867,68663.0,68662.0,0.072867]
[1730729988286,0.073867,68663.0,68662.0,0.072867]
[1730729989084,0.073867,68663.0,68662.0,0.14562108]
[1730729989582,0.073867,68663.0,68662.0,0.072867]
[1730729989786,0.073867,68663.0,68662.0,0.14562108]
[1730729990392,0.073867,68663.0,68662.0,0.2293262]
[1730729991077,0.073867,68663.0,68662.0,0.14562108]
[1730729991279,0.073867,68663.0,68662.0,0.22934214]
[1730729991585,0.073867,68663.0,68661.0,0.07275408]
[1730729991785,0.072869,68660.0,68659.0,0.07493875]
[1730729991979,0.072869,68660.0,68659.0,0.15880922]
[1730729992178,0.072869,68660.0,68659.0,0.07493875]
[1730729993680,0.072869,68660.0,68659.0,0.23159071]
[1730729993984,0.072869,68660.0,68659.0,0.15883663]
[1730729994384,0.072869,68660.0,68659.0,0.23165593]
[1730729994687,0.072869,68660.0,68659.0,0.23665593]
[1730729994891,0.072869,68660.0,68659.0,0.23667868]
[1730729995081,0.074869,68660.0,68659.0,0.23467868]
[1730729995490,0.074869,68660.0,68659.0,0.23167868]
[1730729995786,0.075869,68660.0,68659.0,0.23167868]
[1730729996388,0.075869,68660.0,68659.0,0.23172214]
[1730729996890,0.003,68660.0,68659.0,0.072871]
[1730729997787,0.072868,68661.0,68660.0,0.072869]
[1730729999080,0.075868,68661.0,68660.0,0.072869]
[1730730000789,0.003,68661.0,68660.0,0.072869]
[1730730000997,0.005,68661.0,68660.0,0.072869]
[1730730002291,0.077868,68661.0,68660.0,0.072869]
[1730730002504,0.077868,68661.0,68660.0,0.04372177]
[1730730002680,0.072869,68660.0,68659.0,0.04372177]
[1730730002884,0.072878,68652.0,68651.0,0.07642177]
[1730730003184,0.433678,68652.0,68651.0,0.072879]
[1730730004489,0.433678,68652.0,68651.0,0.10073087]
[1730730004694,0.433678,68652.0,68651.0,0.02785187]
[1730730004996,0.3608,68652.0,68648.0,0.05826992]
[1730730005293,0.14006595,68649.0,68647.0,0.05826992]
[1730730005490,0.072883,68647.0,68646.0,0.00218486]
[1730730005691,0.072883,68647.0,68646.0,0.04586477]
[1730730006184,0.072883,68647.0,68646.0,0.00218486]
[1730730006806,0.072883,68647.0,68646.0,0.04584696]
[1730730007398,0.072883,68647.0,68646.0,0.00218486]
[1730730007593,0.072883,68647.0,68646.0,0.01318486]
[1730730007899,0.509923,68647.0,68646.0,0.02118486]
[1730730008205,0.509923,68647.0,68646.0,0.00658486]
[1730730008589,0.509923,68647.0,68646.0,0.00328486]
[1730730009088,0.509923,68647.0,68646.0,0.01128486]
[1730730009796,0.53763272,68647.0,68646.0,0.01128486]
[1730730009984,0.10059272,68647.0,68637.0,0.07287886]
[1730730010187,0.433693,68638.0,68637.0,0.06157886]
[1730730010388,0.3608,68638.0,68633.0,0.07114783]
[1730730010603,0.3608,68638.0,68626.0,0.0313]
[1730730010604,0.072897,68635.0,68634.0,0.072897]
[1730730012409,0.433693,68638.0,68637.0,0.11847628]
[1730730012703,0.433693,68638.0,68637.0,0.072894]
[1730730012891,0.433693,68638.0,68637.0,0.11647628]
[1730730013492,0.433693,68638.0,68637.0,0.072894]
[1730730014604,0.3608,68638.0,68636.0,0.04358228]
[1730730014897,0.072895,68636.0,68635.0,0.04358228]
[1730730015407,0.072896,68635.0,68634.0,0.11647928]
[1730730016601,0.3608,68638.0,68633.0,0.04358228]
[1730730016909,0.433693,68638.0,68637.0,0.072894]
[1730730018995,0.433693,68638.0,68637.0,0.073894]
[1730730019198,0.3608,68638.0,68637.0,0.21395995]
[1730730019402,0.3608,68638.0,68637.0,0.073894]
[1730730020306,0.433693,68638.0,68637.0,0.073894]
[1730730020696,0.433693,68638.0,68637.0,0.001]
[1730730022499,0.463693,68638.0,68637.0,0.001]
[1730730030099,0.824493,68638.0,68637.0,0.001]
[1730730030408,1.261573,68638.0,68637.0,0.001]
[1730730030904,0.824493,68638.0,68637.0,0.001]
[1730730031105,0.936773,68638.0,68637.0,0.001]
[1730730031603,0.072904,68627.0,68626.0,0.11648728]
[1730730032605,0.072904,68627.0,68626.0,0.11654965]
[1730730032910,0.072904,68627.0,68626.0,0.12354965]
[1730730033312,0.072904,68627.0,68626.0,0.079905]
[1730730034013,0.3608,68628.0,68626.0,0.079905]
[1730730034014,0.3608,68628.0,68627.0,0.072904]
[1730730034212,0.36156,68638.0,68636.0,0.072894]
[1730730034511,0.3608,68638.0,68637.0,0.105094]
[1730730035207,0.433693,68638.0,68637.0,0.105094]
[1730730035517,0.439693,68638.0,68637.0,0.105094]
[1730730036010,0.440693,68638.0,68637.0,0.106094]
[1730730037408,0.3678,68638.0,68637.0,0.106094]
[1730730037605,0.3748,68638.0,68637.0,0.106094]
[1730730038213,0.447693,68638.0,68637.0,0.106094]
[1730730038809,0.447693,68638.0,68637.0,0.001]
[1730730043707,0.884773,68638.0,68637.0,0.001]
[1730730043906,0.884773,68638.0,68625.0,0.04369802]
[1730730043907,0.072898,68633.0,68625.0,0.04369802]
[1730730044109,0.072898,68633.0,68624.0,0.04369802]
[1730730044110,0.072907,68625.0,68624.0,0.04369802]
[1730730044312,0.072907,68625.0,68616.0,0.07496184]
[1730730044313,0.072908,68624.0,68623.0,0.04369802]
[1730730044512,0.072909,68623.0,68622.0,0.04369802]
[1730730044717,0.07291,68622.0,68621.0,0.04369802]
[1730730045027,0.072911,68621.0,68620.0,0.04369802]
[1730730045322,0.21297695,68621.0,68620.0,0.04369802]
[1730730045523,0.14006595,68621.0,68619.0,0.04369802]
[1730730045725,0.433712,68620.0,68619.0,0.04369802]
[1730730046020,0.072917,68615.0,68614.0,0.072918]
[1730730047022,0.072917,68615.0,68614.0,0.10142605]
[1730730048013,0.073917,68615.0,68614.0,0.10542605]
[1730730048322,0.074917,68615.0,68614.0,0.11642605]
[1730730048522,0.074917,68615.0,68614.0,0.07322621]
[1730730048720,0.21498295,68615.0,68614.0,0.015]
[1730730048925,0.21498295,68615.0,68614.0,0.05866229]
[1730730049525,0.21498295,68615.0,68614.0,0.015]
[1730730049720,0.074917,68615.0,68614.0,0.015]
[1730730049925,0.002,68615.0,68614.0,0.087918]
[1730730050821,0.074917,68615.0,68614.0,0.087918]
[1730730051717,0.002,68615.0,68614.0,0.087918]
[1730730053024,0.072907,68628.0,68627.0,0.072903]
[1730730053220,0.072907,68628.0,68627.0,0.11653874]
[1730730053419,0.072907,68628.0,68627.0,0.072903]
[1730730054330,0.074907,68628.0,68627.0,0.072903]
[1730730054520,0.074907,68628.0,68621.0,0.062]
[1730730054521,0.074907,68628.0,68625.0,0.05818098]
[1730730054727,0.072907,68625.0,68624.0,0.13108798]
[1730730055219,0.21297295,68625.0,68624.0,0.13108798]
[1730730055525,0.21297295,68625.0,68624.0,0.05818098]
[1730730056521,0.21297295,68625.0,68624.0,0.002]
[1730730057225,0.21297295,68625.0,68624.0,0.003]
[1730730057724,0.072907,68625.0,68624.0,0.075908]
[1730730059134,0.433705,68627.0,68626.0,0.072906]
[1730730059633,0.3608,68627.0,68626.0,0.11654836]
[1730730059824,0.00218633,68629.0,68626.0,0.072906]
[1730730060018,0.00218633,68629.0,68628.0,0.072903]
[1730730060932,0.00218633,68629.0,68628.0,0.21296895]
[1730730061233,0.00518633,68629.0,68628.0,0.21296895]
[1730730061533,0.00518633,68629.0,68628.0,0.072903]
[1730730061922,0.08008833,68629.0,68628.0,0.072903]
[1730730062631,0.43888833,68629.0,68628.0,0.002]
[1730730063020,0.43888833,68629.0,68628.0,0.04563191]
[1730730063216,0.43888833,68629.0,68628.0,0.002]
[1730730063422,0.87300833,68629.0,68628.0,0.001]
[1730730063717,1.01307428,68629.0,68628.0,0.001]
[1730730064120,0.57595428,68629.0,68628.0,0.001]
[1730730064521,0.57595428,68629.0,68628.0,0.003]
[1730730064720,0.57595428,68629.0,68628.0,0.002]
[1730730064924,0.072914,68618.0,68617.0,0.04363191]
[1730730065136,0.3608,68620.0,68619.0,0.072913]
[1730730065433,0.433712,68620.0,68619.0,0.072913]
[1730730065824,0.072915,68618.0,68615.0,0.13108893]
[1730730066022,0.072915,68617.0,68615.0,0.13108893]
[1730730066431,0.072916,68616.0,68615.0,0.13108893]
[1730730066738,0.072916,68616.0,68615.0,0.072917]
[1730730067640,0.073916,68616.0,68615.0,0.077917]
[1730730067931,0.074916,68616.0,68615.0,0.085917]
[1730730069737,0.002,68616.0,68615.0,0.085917]
[1730730071035,0.074916,68616.0,68615.0,0.085917]
[1730730071235,0.002,68616.0,68615.0,0.085917]
[1730730071530,0.072906,68626.0,68625.0,0.072906]
[1730730071736,0.072906,68626.0,68625.0,0.11658587]
[1730730071921,0.072906,68626.0,68625.0,0.072906]
[1730730072440,0.072906,68626.0,68625.0,0.15820206]
[1730730073333,0.00218607,68631.0,68625.0,0.08529606]
[1730730073533,0.072901,68631.0,68630.0,0.14569635]
[1730730073726,0.072901,68631.0,68630.0,0.23099241]
[1730730073925,0.072901,68631.0,68630.0,0.14569635]
[1730730074141,0.072901,68631.0,68630.0,0.15802342]
[1730730074440,0.072901,68630.0,68629.0,0.07279635]
[1730730074735,0.072903,68628.0,68627.0,0.07279635]
[1730730074956,0.14006595,68628.0,68624.0,0.07279635]
[1730730075129,0.072907,68625.0,68624.0,0.07279635]
[1730730075329,0.14006595,68628.0,68623.0,0.07279635]
[1730730075537,0.072908,68624.0,68623.0,0.07279635]
[1730730075739,0.072908,68624.0,68623.0,0.15834943]
[1730730075928,0.072905,68627.0,68626.0,0.072905]
[1730730076128,0.004,68631.0,68630.0,0.072901]
[1730730076339,0.008,68631.0,68630.0,0.15823659]
[1730730076538,0.004,68631.0,68630.0,0.19033659]
[1730730076737,0.008,68631.0,68630.0,0.27770037]
[1730730077039,0.008,68631.0,68630.0,0.19033659]
[1730730077846,0.009,68631.0,68630.0,0.19033659]
[1730730078143,0.00218564,68645.0,68630.0,0.55455559]
[1730730078331,0.072889,68642.0,68641.0,0.072887]
[1730730079234,0.07289,68641.0,68640.0,0.07275489]
[1730730079434,0.072892,68639.0,68638.0,0.05816782]
[1730730079629,0.3608,68641.0,68637.0,0.05816782]
[1730730079630,0.072893,68638.0,68637.0,0.05816782]
[1730730079943,0.3608,68641.0,68636.0,0.05816782]
[1730730079944,0.072894,68637.0,68636.0,0.05816782]
[1730730080549,0.14006595,68639.0,68635.0,0.05816782]
[1730730080846,0.14006595,68639.0,68637.0,0.04362748]
[1730730081647,0.14006595,68639.0,68636.0,0.04462748]
[1730730081648,0.072894,68637.0,68636.0,0.04462748]
[1730730081842,0.072894,68637.0,68636.0,0.001]
[1730730082951,0.072898,68633.0,68632.0,0.04362748]
[1730730083244,0.433698,68633.0,68632.0,0.04362748]
[1730730084447,0.434698,68633.0,68632.0,0.04362748]
[1730730084644,0.072899,68632.0,68631.0,0.04362748]
[1730730085139,0.003,68633.0,68632.0,0.072899]
[1730730086342,0.003,68632.0,68630.0,0.13106882]
[1730730086534,0.0729,68631.0,68630.0,0.05816782]
[1730730086733,0.0729,68631.0,68626.0,0.072905]
[1730730086734,0.072901,68630.0,68629.0,0.05816782]
[1730730087235,0.3618,68633.0,68628.0,0.05816782]
[1730730087439,0.0729,68632.0,68624.0,0.072908]
[1730730087740,0.0729,68631.0,68630.0,0.008]
[1730730088246,0.0729,68631.0,68630.0,0.080901]
[1730730089152,0.3608,68633.0,68630.0,0.008]
[1730730089344,0.3608,68633.0,68632.0,0.072899]
[1730730089852,0.072894,68637.0,68636.0,0.072894]
[1730730090151,0.072898,68634.0,68633.0,0.072898]
[1730730090354,0.3608,68639.0,68630.0,0.001]
[1730730090563,0.0729,68631.0,68630.0,0.001]
[1730730090741,0.3608,68633.0,68622.0,0.11292]
[1730730090942,0.072903,68629.0,68627.0,0.072904]
[1730730091141,0.072903,68628.0,68627.0,0.072904]
[1730730091357,0.14006595,68630.0,68621.0,0.43371]
[1730730091651,0.07291,68622.0,68621.0,0.43371]
[1730730093048,0.07291,68622.0,68621.0,0.43771]
[1730730093759,0.43371,68622.0,68621.0,0.08191]
[1730730093943,0.43371,68622.0,68621.0,0.009]
[1730730094144,0.79451,68622.0,68621.0,0.009]
[1730730094355,0.82731,68622.0,68621.0,0.009]
[1730730094547,0.82731,68622.0,68621.0,0.00331542]
[1730730095564,0.82731,68622.0,68621.0,0.00531542]
[1730730096242,0.82731,68622.0,68621.0,0.002]
[1730730096458,0.82731,68622.0,68621.0,0.005]
[1730730097548,0.79451,68622.0,68621.0,0.005]
[1730730098853,0.79451,68622.0,68621.0,0.077911]
[1730730099751,0.79451,68622.0,68621.0,0.005]
[1730730101856,0.79451,68622.0,68621.0,0.077911]
[1730730102055,0.79451,68622.0,68621.0,0.005]
[1730730103350,0.79451,68622.0,68621.0,0.04861099]
[1730730105059,0.79451,68622.0,68621.0,0.005]
[1730730107053,0.79451,68622.0,68621.0,0.077911]
[1730730107250,0.79451,68622.0,68621.0,0.005]
[1730730108363,0.43371,68622.0,68621.0,0.005]
[1730730111562,0.43371,68622.0,68618.0,9.9e-07]
[1730730111563,0.90835,68622.0,68618.0,9.9e-07]
[1730730111764,0.072916,68616.0,68615.0,0.00826782]
[1730730111971,0.072921,68611.0,68610.0,0.07275489]
[1730730112168,0.21298695,68611.0,68610.0,0.07275489]
[1730730112763,0.57378695,68611.0,68610.0,0.07275489]
[1730730112962,0.68762695,68611.0,68610.0,0.07275489]
[1730730114976,0.072932,68601.0,68600.0,0.1]
[1730730115279,0.57379795,68601.0,68600.0,0.1]
[1730730115577,0.68767795,68601.0,68600.0,0.1]
[1730730116265,0.434732,68601.0,68600.0,0.1]
[1730730116471,0.549612,68601.0,68600.0,0.105]
[1730730117865,0.548612,68601.0,68600.0,0.105]
[1730730118066,0.57729431,68601.0,68600.0,0.107]
[1730730119878,0.57729431,68601.0,68600.0,0.030583]
[1730730121278,0.072948,68586.0,68585.0,0.0102]
[1730730121474,0.07295,68584.0,68583.0,0.3608]
[1730730122672,0.001,68586.0,68585.0,0.072949]
[1730730123182,0.3608,68589.0,68585.0,0.072949]
[1730730123381,0.3608,68589.0,68583.0,0.3698]
[1730730123567,0.14006595,68599.0,68594.0,0.072939]
[1730730123879,0.4612959,68601.0,68597.0,0.072936]
[1730730124067,0.072933,68601.0,68598.0,0.03]
[1730730124268,0.072931,68603.0,68600.0,0.072933]
[1730730124467,0.072931,68602.0,68600.0,0.072933]
[1730730124674,0.50162595,68604.0,68598.0,0.0624]
[1730730124872,0.50086595,68604.0,68598.0,0.0624]
[1730730125068,0.072931,68602.0,68598.0,0.0624]
[1730730125381,0.21299995,68599.0,68598.0,0.03]
[1730730125568,0.072937,68596.0,68595.0,0.0325]
[1730730125878,0.072937,68596.0,68583.0,0.443951]
[1730730125879,0.072943,68591.0,68589.0,0.072945]
[1730730126171,0.21300895,68591.0,68589.0,0.072945]
[1730730126373,0.14006595,68591.0,68587.0,0.0324]
[1730730126573,0.072946,68588.0,68587.0,0.0324]
[1730730127766,0.072946,68588.0,68587.0,0.105347]
[1730730127969,0.072946,68588.0,68587.0,0.0324]
[1730730128876,0.073946,68588.0,68587.0,0.0324]
[1730730129077,0.074946,68588.0,68587.0,0.0394]
[1730730132670,0.074946,68588.0,68587.0,0.007]
[1730730135580,0.074946,68588.0,68587.0,0.079947]
[1730730135782,0.002,68588.0,68587.0,0.079947]
[1730730137180,0.002,68588.0,68587.0,0.007]
[1730730137181,0.074946,68588.0,68587.0,0.007]
[1730730138279,0.07296,68575.0,68574.0,0.0301]
[1730730139680,0.07396,68575.0,68574.0,0.0301]
[1730730139885,0.07496,68575.0,68574.0,0.0371]
[1730730140272,0.072969,68566.0,68565.0,0.10509221]
[1730730140473,0.3608,68568.0,68567.0,0.072968]
[1730730142385,0.3618,68568.0,68567.0,0.072968]
[1730730142974,0.3628,68568.0,68567.0,0.072968]
[1730730143674,0.435767,68568.0,68567.0,0.072968]
[1730730145389,0.002,68568.0,68567.0,0.072968]
[1730730145688,0.074967,68568.0,68567.0,0.072968]
[1730730146890,0.002,68568.0,68567.0,0.072968]